Workbook

Sheet Лист1
A1: Школа | C1: МБОУ "Крым-Сарайская ООШ " | F1: Утвердил: | G1: должность | H1: Директор
A2: Типовое примерное меню приготавливаемых блюд | G2: фамилия | H2: Кулагина А.В.
A3: Возрастная категория | E3: 7-11 лет | G3: дата | H3: 12 | I3: 1 | J3: 2026
E4: " | H4: день | I4: месяц | J4: год
A5: Неделя | B5: День недели | C5: Прием пищи | D5: Раздел меню | E5: Блюда | F5: Вес блюда, г | G5: Белки | H5: Жиры | I5: Углеводы | J5: Калорийность | K5: № рецептуры | L5: Цена
A6: 1 | B6: 1 | C6: Завтрак | D6: закуска | E6: салат из белокачанной капусты | F6: 60 | G6: 3 | H6: 3.8 | I6: 4.7 | J6: 52.8 | K6: 45
D7: гарнир | E7: плов из птицы | F7: 200 | G7: 12.3 | H7: 15.4 | I7: 40.05 | J7: 361.3 | K7: 291
D8: гор.напиток | E8: чай с сахаром и лимоном | F8: 200 | G8: 0.1 | H8: 0 | I8: 15.2 | J8: 62 | K8: 377
D9: хлеб | E9: хлеб пшеничный | F9: 30 | G9: 2.3 | H9: 0.2 | I9: 14.8 | J9: 70.2 | K9: 573
D10: хлеб | E10: хлеб сельский | F10: 20 | G10: 1.6 | H10: 0.3 | I10: 8 | J10: 41.2 | K10: 574
L12: 77.76
D13: итого | F13: =SUM(F6:F12) -> 510 | G13: =SUM(G6:G12) -> 19.3 | H13: =SUM(H6:H12) -> 19.7 | I13: =SUM(I6:I12) -> 82.75 | J13: =SUM(J6:J12) -> 587.5 | L13: =SUM(L6:L12) -> 77.76
A14: =A6 -> 1 | B14: =B6 -> 1 | C14: Обед | D14: закуска
D15: 1 блюдо
D16: 2 блюдо
D17: гарнир
D18: напиток
D19: хлеб бел.
D20: хлеб черн.
D23: итого | F23: =SUM(F14:F22) -> 0 | G23: =SUM(G14:G22) -> 0 | H23: 0 | I23: 0 | J23: 0 | L23: =SUM(F23:K23) -> 0
A24: =A6 -> 1 | B24: =B6 -> 1 | C24: Итого за день: | F24: =F13+F23 -> 510 | G24: =G13+G23 -> 19.3 | H24: 19.7 | I24: 82.75 | J24: 587.5 | L24: 77.76
A25: 1 | B25: 2 | C25: Завтрак | D25: 2 блюдо | E25: тефтели говяжьи с соусом | F25: 90 | G25: 9.8 | H25: 12.1 | I25: 8.2 | J25: 106.6 | K25: 279
D26: гарнир | E26: картофельное пюре | F26: 150 | G26: 1.8 | H26: 4.8 | I26: 10.1 | J26: 110.4 | K26: 312
D27: гор.напиток | E27: компот из сухофруктов | F27: 200 | G27: 1.2 | H27: 0.3 | I27: 12.7 | J27: 112.8 | K27: 349
D28: сладкое | E28: печенье | F28: 40 | G28: 2.4 | H28: 1.9 | I28: 30 | J28: 146.4 | K28: 582
D29: хлеб | E29: хлеб пшеничный | F29: 30 | G29: 2.3 | H29: 0.2 | I29: 14.8 | J29: 70.2 | K29: 573
D30: хлеб | E30: хлеб сельский | F30: 20 | G30: 1.6 | H30: 0.3 | I30: 8 | J30: 41.2 | K30: 574
L32: 77.76
D33: итого | F33: =SUM(F25:F32) -> 530 | G33: =SUM(G25:G32) -> 19.1 | H33: =SUM(H25:H32) -> 19.6 | I33: =SUM(I25:I32) -> 83.8 | J33: =SUM(J25:J32) -> 587.6 | L33: =SUM(L25:L32) -> 77.76
A34: =A25 -> 1 | B34: =B25 -> 2 | C34: Обед | D34: закуска
D35: 1 блюдо
D36: 2 блюдо
D37: гарнир
D38: напиток
D39: хлеб бел.
D40: хлеб черн.
D43: итого | F43: =SUM(F34:F42) -> 0 | G43: =SUM(G34:G42) -> 0 | H43: =SUM(H34:H42) -> 0 | I43: =SUM(I34:I42) -> 0 | J43: =SUM(J34:J42) -> 0 | L43: 0
A44: =A25 -> 1 | B44: =B25 -> 2 | C44: Итого за день: | F44: =F33+F43 -> 530 | G44: =G33+G43 -> 19.1 | H44: =H33+H43 -> 19.6 | I44: =I33+I43 -> 83.8 | J44: =J33+J43 -> 587.6 | L44: 77.76
A45: 1 | B45: 3 | C45: Завтрак | D45: сладкое | E45: яблоко | F45: 100 | G45: 0.4 | H45: 0.4 | I45: 9.8 | J45: 47 | K45: 338
D46: 2 блюдо | E46: фрикадельки куриные в соусе | F46: 90 | G46: 9.24 | H46: 12.9 | I46: 5.1 | J46: 169.4 | K46: 297
D47: гарнир | E47: макаронные изделия отварные с маслом | F47: 160 | G47: 5.6 | H47: 5.9 | I47: 31.1 | J47: 199.6 | K47: 203
D48: гор.напиток | E48: чай с сахаром | F48: 200 | G48: 0.1 | H48: 0 | I48: 15 | J48: 60 | K48: 376
D49: хлеб | E49: хлеб пшеничный | F49: 30 | G49: 2.3 | H49: 0.2 | I49: 14.8 | J49: 70.2 | K49: 573
D50: хлеб | E50: хлеб сельский | F50: 20 | G50: 1.6 | H50: 0.3 | I50: 8 | J50: 41.2 | K50: 574
L51: 77.76
D52: итого | F52: =SUM(F45:F51) -> 600 | G52: =SUM(G45:G51) -> 19.24 | H52: =SUM(H45:H51) -> 19.7 | I52: =SUM(I45:I51) -> 83.8 | J52: =SUM(J45:J51) -> 587.4 | L52: 77.76
A53: =A45 -> 1 | B53: =B45 -> 3 | C53: Обед | D53: закуска
D54: 1 блюдо
D55: 2 блюдо
D56: гарнир
D57: напиток
D58: хлеб бел.
D59: хлеб черн.
D62: итого | F62: =SUM(F53:F61) -> 0 | G62: =SUM(G53:G61) -> 0 | H62: =SUM(H53:H61) -> 0 | I62: =SUM(I53:I61) -> 0 | J62: =SUM(J53:J61) -> 0 | L62: 0
A63: =A45 -> 1 | B63: =B45 -> 3 | C63: Итого за день: | F63: =F52+F62 -> 600 | G63: =G52+G62 -> 19.24 | H63: =H52+H62 -> 19.7 | I63: =I52+I62 -> 83.8 | J63: =J52+J62 -> 587.4 | L63: 77.76
A64: 1 | B64: 4 | C64: Завтрак | D64: закуска | E64: салат из свеклы отварной | F64: 60 | G64: 0.8 | H64: 3.7 | I64: 4.6 | J64: 54.6 | K64: 52
D65: гарнир | E65: гречка с курицей по купечески | F65: 200 | G65: 12 | H65: 15.2 | I65: 40.3 | J65: 361.3 | K65: 370
D66: гор.напиток | E66: чай с сахаром | F66: 200 | G66: 0.1 | H66: 0 | I66: 15 | J66: 60 | K66: 376
D67: хлеб | E67: хлеб пшеничный | F67: 30 | G67: 2.3 | H67: 0.2 | I67: 14.8 | J67: 70.2 | K67: 573
D68: хлеб | E68: хлеб сельский | F68: 20 | G68: 1.6 | H68: 0.3 | I68: 8 | J68: 41.2 | K68: 574
L69: 77.76
D70: итого | F70: =SUM(F64:F69) -> 510 | G70: =SUM(G64:G69) -> 16.8 | H70: =SUM(H64:H69) -> 19.4 | I70: =SUM(I64:I69) -> 82.7 | J70: =SUM(J64:J69) -> 587.3 | L70: =SUM(L64:L69) -> 77.76
A71: =A64 -> 1 | B71: =B64 -> 4 | C71: Обед | D71: закуска
D72: 1 блюдо
D73: 2 блюдо
D74: гарнир
D75: напиток
D76: хлеб бел.
D77: хлеб черн.
D80: итого | F80: =SUM(F71:F79) -> 0 | G80: =SUM(G71:G79) -> 0 | H80: =SUM(H71:H79) -> 0 | I80: =SUM(I71:I79) -> 0 | J80: =SUM(J71:J79) -> 0 | L80: 0
A81: =A64 -> 1 | B81: =B64 -> 4 | C81: Итого за день: | F81: =F70+F80 -> 510 | G81: =G70+G80 -> 16.8 | H81: =H70+H80 -> 19.4 | I81: =I70+I80 -> 82.7 | J81: =J70+J80 -> 587.3 | L81: 77.76
A82: 1 | B82: 5 | C82: Завтрак | D82: закуска | E82: салат морковный | F82: 60 | G82: 0.7 | H82: 1.1 | I82: 4.9 | J82: 49 | K82: 62
D83: гарнир | E83: рагу из птицы | F83: 200 | G83: 14.5 | H83: 17.5 | I83: 40.8 | J83: 348.2 | K83: 289
D84: гор.напиток | E84: кисель | F84: 200 | G84: 0 | H84: 0 | I84: 15 | J84: 60 | K84: 484
D85: хлеб | E85: хлеб пшеничный | F85: 30 | G85: 2.3 | H85: 0.2 | I85: 14.8 | J85: 70.2 | K85: 573
D86: хлеб | E86: хлеб сельский | F86: 20 | G86: 1.6 | H86: 0.3 | I86: 8 | J86: 41.2 | K86: 574
L88: 77.76
D89: итого | F89: =SUM(F82:F88) -> 510 | G89: =SUM(G82:G88) -> 19.1 | H89: =SUM(H82:H88) -> 19.1 | I89: =SUM(I82:I88) -> 83.5 | J89: =SUM(J82:J88) -> 568.6 | L89: =SUM(L82:L88) -> 77.76
A90: =A82 -> 1 | B90: =B82 -> 5 | C90: Обед | D90: закуска
D91: 1 блюдо
D92: 2 блюдо
D93: гарнир
D94: напиток
D95: хлеб бел.
D96: хлеб черн.
D99: итого | F99: =SUM(F90:F98) -> 0 | G99: =SUM(G90:G98) -> 0 | H99: =SUM(H90:H98) -> 0 | I99: =SUM(I90:I98) -> 0 | J99: =SUM(J90:J98) -> 0 | L99: 0
A100: =A82 -> 1 | B100: =B82 -> 5 | C100: Итого за день: | F100: =F89+F99 -> 510 | G100: =G89+G99 -> 19.1 | H100: =H89+H99 -> 19.1 | I100: =I89+I99 -> 83.5 | J100: =J89+J99 -> 568.6 | L100: 77.76
A101: 1 | B101: 6 | C101: Завтрак | D101: 2 бдюдо | E101: птица тушёная в соусе | F101: 90 | G101: 9.7 | H101: 11.4 | I101: 3.2 | J101: 150.3 | K101: 290
D102: гарнир | E102: макароны отварные с маслом | F102: 160 | G102: 5.6 | H102: 5.9 | I102: 31 | J102: 199.6 | K102: 203
D103: гор.напиток | E103: чай черный с сахаром | F103: 208 | G103: 0.1 | H103: 0 | I103: 15 | J103: 60 | K103: 376
D104: хлеб | E104: хлеб пшеничный | F104: 30 | G104: 2.3 | H104: 0.2 | I104: 14.8 | J104: 70.2 | K104: 573
D105: хлеб | E105: хлеб сельский | F105: 20 | G105: 1.6 | H105: 0.3 | I105: 8 | J105: 41.2 | K105: 574
L107: 77.76
D108: итого | F108: =SUM(F101:F107) -> 508 | G108: =SUM(G101:G107) -> 19.3 | H108: =SUM(H101:H107) -> 17.8 | I108: =SUM(I101:I107) -> 72 | J108: =SUM(J101:J107) -> 521.3 | L108: =SUM(L101:L107) -> 77.76
A109: =A101 -> 1 | B109: =B101 -> 6 | C109: Обед | D109: закуска
D110: 1 блюдо
D111: 2 блюдо
D112: гарнир
D113: напиток
D114: хлеб бел.
D115: хлеб черн.
D118: итого | F118: =SUM(F109:F117) -> 0 | G118: =SUM(G109:G117) -> 0 | H118: 0 | I118: 0 | J118: 0 | L118: =SUM(L109:L117) -> 0
A119: =A101 -> 1 | B119: =B101 -> 6 | C119: Итого за день: | F119: =F108+F118 -> 508 | G119: =G108+G118 -> 19.3 | H119: =H108+H118 -> 17.8 | I119: =I108+I118 -> 72 | J119: =J108+J118 -> 521.3 | L119: 77.76
A120: 2 | B120: 1 | C120: Завтрак | D120: сладкое | E120: яблоко | F120: 100 | G120: 0.4 | H120: 0.4 | I120: 9.8 | J120: 47 | K120: 228
D121: гарнир | E121: каша вязкая молочая пшённая с маслом | F121: 200 | G121: 13.7 | H121: 17.5 | I121: 38.1 | J121: 314.2 | K121: 173
D122: гор.напиток | E122: компот из сухофруктов | F122: 200 | G122: 1.2 | H122: 0.3 | I122: 12.7 | J122: 112.8 | K122: 349
D123: хлеб | E123: хлеб пшеничный | F123: 30 | G123: 2.3 | H123: 0.2 | I123: 14.8 | J123: 70.2 | K123: 573
D124: хлеб | E124: хлеб сельский | F124: 20 | G124: 1.6 | H124: 0.3 | I124: 8 | J124: 41.2 | K124: 574
L126: 77.76
D127: итого | F127: =SUM(F120:F126) -> 550 | G127: =SUM(G120:G126) -> 19.2 | H127: 18.7 | I127: 83.4 | J127: 585.4 | L127: 77.76
A128: =A120 -> 2 | B128: =B120 -> 1 | C128: Обед | D128: закуска
D129: 1 блюдо
D130: 2 блюдо
D131: гарнир
D132: напиток
D133: хлеб бел.
D134: хлеб черн.
D137: итого | F137: =SUM(F128:F136) -> 0 | G137: =SUM(G128:G136) -> 0 | H137: 0 | I137: 0 | J137: 0 | L137: =SUM(L128:L136) -> 0
A138: =A120 -> 2 | B138: =B120 -> 1 | C138: Итого за день: | F138: =F127+F137 -> 550 | G138: =G127+G137 -> 19.2 | H138: =H127+H137 -> 18.7 | I138: =I127+I137 -> 83.4 | J138: =J127+J137 -> 585.4 | L138: 77.76
A139: 2 | B139: 2 | C139: Завтрак | D139: 2 блюдо | E139: фрикадельки куриные в соусе | F139: 90 | G139: 9.3 | H139: 12.9 | I139: 5 | J139: 169.4 | K139: 297
D140: гарнир | E140: макаронные изделия отварные с маслом | F140: 160 | G140: 5.6 | H140: 5.9 | I140: 31.1 | J140: 199.6 | K140: 203
D141: гор.напиток | E141: чай черный с сахаром | F141: 208 | G141: 0.1 | H141: 0 | I141: 15 | J141: 60 | K141: 376
D142: хлеб | E142: хлеб пшеничный | F142: 30 | G142: 2.3 | H142: 0.2 | I142: 14.8 | J142: 70.2 | K142: 573
D143: хлеб | E143: хлеб сельский | F143: 20 | G143: 1.6 | H143: 0.3 | I143: 8 | J143: 41.2 | K143: 574
L145: 77.76
D146: итого | F146: =SUM(F139:F145) -> 508 | G146: =SUM(G139:G145) -> 18.9 | H146: =SUM(H139:H145) -> 19.3 | I146: =SUM(I139:I145) -> 73.9 | J146: =SUM(J139:J145) -> 540.4 | L146: =SUM(L139:L145) -> 77.76
A147: =A139 -> 2 | B147: =B139 -> 2 | C147: Обед | D147: закуска
D148: 1 блюдо
D149: 2 блюдо
D150: гарнир
D151: напиток
D152: хлеб бел.
D153: хлеб черн.
D156: итого | F156: =SUM(F147:F155) -> 0 | G156: =SUM(G147:G155) -> 0 | H156: 0 | I156: 0 | J156: 0 | L156: =SUM(L147:L155) -> 0
A157: =A139 -> 2 | B157: =B139 -> 2 | C157: Итого за день: | F157: =F146+F156 -> 508 | G157: =G146+G156 -> 18.9 | H157: =H146+H156 -> 19.3 | I157: =I146+I156 -> 73.9 | J157: =J146+J156 -> 540.4 | L157: 77.76
A158: 2 | B158: 3 | C158: Завтрак | D158: 2 блюдо | E158: рыба тушёная с овощами в томате | F158: 100 | G158: 10.3 | H158: 12.8 | I158: 32.6 | J158: 246.3 | K158: 229
D159: гарнир | E159: картофельное пюре | F159: 150 | G159: 1.8 | H159: 4.8 | I159: 10.12 | J159: 110.35 | K159: 312
D160: гор.напиток | E160: чай с сахаром, лимоном | F160: 208 | G160: 0.1 | H160: 0 | I160: 15.2 | J160: 62 | K160: 377
D161: хлеб | E161: хлеб пшеничный | F161: 30 | G161: 2.3 | H161: 0.2 | I161: 14.8 | J161: 70.2 | K161: 573
D162: хлеб | E162: хлеб сельский | F162: 20 | G162: 1.6 | H162: 0.3 | I162: 8 | J162: 41.2 | K162: 574
L163: 77.76
D164: итого | F164: =SUM(F158:F163) -> 508 | G164: =SUM(G158:G163) -> 16.1 | H164: =SUM(H158:H163) -> 18.1 | I164: =SUM(I158:I163) -> 80.72 | J164: =SUM(J158:J163) -> 530.05 | L164: =SUM(L158:L163) -> 77.76
A165: =A158 -> 2 | B165: =B158 -> 3 | C165: Обед | D165: закуска
D166: 1 блюдо
D167: 2 блюдо
D168: гарнир
D169: напиток
D170: хлеб бел.
D171: хлеб черн.
D174: итого | F174: =SUM(F165:F173) -> 0 | G174: =SUM(G165:G173) -> 0 | H174: 0 | I174: 0 | J174: 0 | L174: =SUM(L165:L173) -> 0
A175: =A158 -> 2 | B175: =B158 -> 3 | C175: Итого за день: | F175: =F164+F174 -> 508 | G175: =G164+G174 -> 16.1 | H175: =H164+H174 -> 18.1 | I175: =I164+I174 -> 80.72 | J175: =J164+J174 -> 530.05 | L175: 77.76
A176: 2 | B176: 4 | C176: Завтрак | D176: закуска | E176: салат из свежей капусты | F176: 60 | G176: 3 | H176: 3.8 | I176: 4.7 | J176: 52.8 | K176: 45
D177: гарнир | E177: гречка с курицей по купечески | F177: 200 | G177: 12 | H177: 15.2 | I177: 40.3 | J177: 361.3 | K177: 370
D178: гор.напиток | E178: чай черный с сахаром | F178: 200 | G178: 0.1 | H178: 0 | I178: 15 | J178: 60 | K178: 376
D179: хлеб | E179: хлеб пшеничный | F179: 30 | G179: 2.3 | H179: 0.2 | I179: 14.8 | J179: 70.2 | K179: 573
D180: хлеб | E180: хлеб сельский | F180: 20 | G180: 1.6 | H180: 0.3 | I180: 8 | J180: 41.2 | K180: 574
L181: 77.76
D182: итого | F182: =SUM(F176:F181) -> 510 | G182: =SUM(G176:G181) -> 19 | H182: =SUM(H176:H181) -> 19.5 | I182: =SUM(I176:I181) -> 82.8 | J182: =SUM(J176:J181) -> 585.5 | L182: =SUM(L176:L181) -> 77.76
A183: =A176 -> 2 | B183: =B176 -> 4 | C183: Обед | D183: закуска
D184: 1 блюдо
D185: 2 блюдо
D186: гарнир
D187: напиток
D188: хлеб бел.
D189: хлеб черн.
D192: итого | F192: =SUM(F183:F191) -> 0 | G192: =SUM(G183:G191) -> 0 | H192: 0 | I192: 0 | J192: 0 | L192: =SUM(L183:L191) -> 0
A193: =A176 -> 2 | B193: =B176 -> 4 | C193: Итого за день: | F193: =F182+F192 -> 510 | G193: =G182+G192 -> 19 | H193: =H182+H192 -> 19.5 | I193: =I182+I192 -> 82.8 | J193: =J182+J192 -> 585.5 | L193: 77.76
A194: 2 | B194: 5 | C194: Завтрак | D194: закуска | E194: салат из моркови | F194: 60 | G194: 0.7 | H194: 1.1 | I194: 4.9 | J194: 49 | K194: 62
D195: гарнир | E195: рагу из птицы | F195: 200 | G195: 14.5 | H195: 17.5 | I195: 40.8 | J195: 348.2 | K195: 289
D196: гор.напиток | E196: кисель | F196: 200 | G196: 0 | H196: 0 | I196: 15 | J196: 60 | K196: 484
D197: хлеб | E197: хлеб пшеничный | F197: 30 | G197: 2.3 | H197: 0.2 | I197: 14.8 | J197: 70.2 | K197: 573
D198: хлеб | E198: хлеб сельский | F198: 20 | G198: 1.6 | H198: 0.3 | I198: 8 | J198: 41.2 | K198: 574
L200: 77.76
D201: итого | F201: =SUM(F194:F200) -> 510 | G201: =SUM(G194:G200) -> 19.1 | H201: 19.1 | I201: 83.5 | J201: 568.6 | L201: =SUM(L194:L200) -> 77.76
A202: =A194 -> 2 | B202: =B194 -> 5 | C202: Обед | D202: закуска
D203: 1 блюдо
D204: 2 блюдо
D205: гарнир
D206: напиток
D207: хлеб бел.
D208: хлеб черн.
D211: итого | F211: =SUM(F202:F210) -> 0 | G211: =SUM(G202:G210) -> 0 | H211: 0 | I211: 0 | J211: 0 | L211: =SUM(L202:L210) -> 0
A212: =A194 -> 2 | B212: =B194 -> 5 | C212: Итого за день: | F212: =F201+F211 -> 510 | G212: =G201+G211 -> 19.1 | H212: 19.1 | I212: 83.5 | J212: 568.6 | L212: =L201+L211 -> 77.76
A213: 2 | B213: 6 | C213: Завтрак | D213: 2 блюдо | E213: птица тушёная в соусе | F213: 90 | G213: 9.7 | H213: 11.4 | I213: 3.2 | J213: 150.3 | K213: 290
D214: гарнир | E214: макаронные изделия отварные с маслом | F214: 160 | G214: 5.6 | H214: 5.9 | I214: 31.1 | J214: 199.6 | K214: 203
D215: гор.напиток | E215: чай черный с сахаром | F215: 208 | G215: 0.1 | H215: 0 | I215: 15 | J215: 60 | K215: 376
D216: хлеб | E216: хлеб пшеничный | F216: 30 | G216: 2.3 | H216: 0.2 | I216: 14.8 | J216: 70.2 | K216: 573
D217: хлеб | E217: хлеб сельский | F217: 20 | G217: 1.6 | H217: 0.3 | I217: 8 | J217: 41.2 | K217: 574
L219: 77.76
D220: итого | F220: =SUM(F213:F219) -> 508 | G220: =SUM(G213:G219) -> 19.3 | H220: 17.8 | I220: 72.1 | J220: 521.3 | L220: =SUM(L213:L219) -> 77.76
A221: =A213 -> 2 | B221: =B213 -> 6 | C221: Обед | D221: закуска
D222: 1 блюдо
D223: 2 блюдо
D224: гарнир
D225: напиток
D226: хлеб бел.
D227: хлеб черн.
D230: итого | F230: =SUM(F221:F229) -> 0 | G230: =SUM(G221:G229) -> 0 | H230: 0 | I230: 0 | J230: 0 | L230: =SUM(L221:L229) -> 0
A231: =A213 -> 2 | B231: =B213 -> 6 | C231: Итого за день: | F231: =F220+F230 -> 508 | G231: =G220+G230 -> 19.3 | H231: 17.8 | I231: 72.1 | J231: 521.3 | L231: =L220+L230 -> 77.76
C232: Среднее значение за период: | F232: =(F24+F44+F63+F81+F100+F119+F138+F157+F175+F193)/(IF(F24=0,0,1)+IF(F44=0,0,1)+IF(F63=0,0,1)+IF(F81=0,0,1)+IF(F100=0,0,1)+IF(F119=0,0,1)+IF(F138=0,0,1)+IF(F157=0,0,1)+IF(F175=0,0,1)+IF(F193=0,0,1)) -> 524.4 | G232: =(G24+G44+G63+G81+G100+G119+G138+G157+G175+G193)/(IF(G24=0,0,1)+IF(G44=0,0,1)+IF(G63=0,0,1)+IF(G81=0,0,1)+IF(G100=0,0,1)+IF(G119=0,0,1)+IF(G138=0,0,1)+IF(G157=0,0,1)+IF(G175=0,0,1)+IF(G193=0,0,1)) -> 18.604 | H232: =(H24+H44+H63+H81+H100+H119+H138+H157+H175+H193)/(IF(H24=0,0,1)+IF(H44=0,0,1)+IF(H63=0,0,1)+IF(H81=0,0,1)+IF(H100=0,0,1)+IF(H119=0,0,1)+IF(H138=0,0,1)+IF(H157=0,0,1)+IF(H175=0,0,1)+IF(H193=0,0,1)) -> 19.09 | I232: =(I24+I44+I63+I81+I100+I119+I138+I157+I175+I193)/(IF(I24=0,0,1)+IF(I44=0,0,1)+IF(I63=0,0,1)+IF(I81=0,0,1)+IF(I100=0,0,1)+IF(I119=0,0,1)+IF(I138=0,0,1)+IF(I157=0,0,1)+IF(I175=0,0,1)+IF(I193=0,0,1)) -> 80.937 | J232: =(J24+J44+J63+J81+J100+J119+J138+J157+J175+J193)/(IF(J24=0,0,1)+IF(J44=0,0,1)+IF(J63=0,0,1)+IF(J81=0,0,1)+IF(J100=0,0,1)+IF(J119=0,0,1)+IF(J138=0,0,1)+IF(J157=0,0,1)+IF(J175=0,0,1)+IF(J193=0,0,1)) -> 568.105 | L232: =(L24+L44+L63+L81+L100+L119+L138+L157+L175+L193)/(IF(L24=0,0,1)+IF(L44=0,0,1)+IF(L63=0,0,1)+IF(L81=0,0,1)+IF(L100=0,0,1)+IF(L119=0,0,1)+IF(L138=0,0,1)+IF(L157=0,0,1)+IF(L175=0,0,1)+IF(L193=0,0,1)) -> 77.76
